[Event "Kupreichik Memorial Open 2018"]
[Site "Minsk"]
[Date "2018.06.23"]
[Round "9"]
[White "Romanovskij, Nikita"]
[Black "Masjuk, Vladimir"]
[Result "1-0"]
[ECO "A45"]
[WhiteElo "1869"]
[BlackElo "1829"]
[Annotator "NA"]
[PlyCount "49"]
[EventDate "2018.06.21"]
[EventCountry "BLR"]
[SourceTitle "playchess.com"]
[Source "ChessBase"]
[SourceQuality "1"]
[TimeControl "900+10"]

1. d4 {[%emt 0:00:00]} Nf6 {[%emt 0:00:03]} 2. Bf4 {[%emt 0:00:00]} d6 {[%emt 0:00:03]} 3. Nc3 {[%emt 0:00:09]} Bf5 {[%emt 0:00:09]} 4. g3 {[%emt 0:00:02]} Nbd7 {[%emt 0:00:03]} 5. Bg2 {[%emt 0:00:03]} c6 {[%emt 0:00:03]} 6. e4 {[%emt 0:00:01]} Bg6 {[%emt 0:00:04]} 7. Nge2 {[%emt 0:00:01]} e5 {[%emt 0:00:04]} 8. Be3 {[%emt 0:00:01]} Be7 {[%emt 0:00:15]} 9. h3 {[%emt 0:00:17]} h6 {[%emt 0:00:25]} 10. O-O {[%emt 0:00:07]} O-O {[%emt 0:00:05]} 11. f4 {[%emt 0:00:35]} exf4 {[%emt 0:00:19]} 12. gxf4 {[%emt 0:00:02]} Bh5 {[%emt 0:00:08]} 13. Qd2 {[%emt 0:00:24]} Bxe2 {[%emt 0:00:07]} 14. Qxe2 {[%emt 0:00:06]} Qa5 {[%emt 0:01:15]} 15. e5 {[%emt 0:01:29]} Nd5 {[%emt 0:00:40]} 16. Nxd5 {[%emt 0:00:51]} cxd5 {[%emt 0:00:03]} 17. Qg4 {[%emt 0:00:12]} f5 {[%emt 0:02:44]} 18. Qg6 {[%emt 0:00:46]} Nb6 {[%emt 0:07:02]} 19. Qe6+ {[%emt 0:01:24]} Rf7 {[%emt 0:00:03]} 20. Bf3 {[%emt 0:00:01]} g6 {[%emt 0:00:17]} 21. Kh2 {[%emt 0:00:27]} Qa4 {[%emt 0:01:49]} 22. Rg1 {[%emt 0:00:44]} Qxc2+ {[%emt 0:01:17]} 23. Rg2 {[%emt 0:00:01]} Qd3 {[%emt 0:00:01]} 24. Qxg6+ {[%emt 0:00:09]} Kf8 {[%emt 0:00:01]} 25. Qg8# {[%emt 0:00:03]} 1-0

[Event "Kupreichik Memorial Open 2018"]
[Site "Minsk"]
[Date "2018.06.23"]
[Round "9"]
[White "Talma, Sergei"]
[Black "Kashtelyan, Valentin"]
[Result "1-0"]
[ECO "B15"]
[WhiteElo "1858"]
[BlackElo "1604"]
[Annotator "NA"]
[PlyCount "107"]
[EventDate "2018.06.21"]
[EventCountry "BLR"]
[SourceTitle "playchess.com"]
[Source "ChessBase"]
[SourceQuality "1"]
[TimeControl "900+10"]

1. d4 {[%emt 0:00:00]} d5 {[%emt 0:00:40]} 2. Nc3 {[%emt 0:00:00]} c6 {[%emt 0:00:02]} 3. e4 {[%emt 0:00:00]} dxe4 {[%emt 0:00:02]} 4. Nxe4 {[%emt 0:00:00]} e6 {[%emt 0:00:10]} 5. Nf3 {[%emt 0:00:02]} Nd7 {[%emt 0:00:02]} 6. Bd3 {[%emt 0:00:04]} Ngf6 {[%emt 0:00:01]} 7. Nxf6+ {[%emt 0:00:36]} Nxf6 {[%emt 0:00:02]} 8. O-O {[%emt 0:00:02]} Be7 {[%emt 0:00:15]} 9. c4 {[%emt 0:00:26]} O-O {[%emt 0:00:12]} 10. Qc2 {[%emt 0:00:01]} h6 {[%emt 0:00:09]} 11. h3 {[%emt 0:00:23]} c5 {[%emt 0:00:52]} 12. Be3 {[%emt 0:00:42]} cxd4 {[%emt 0:00:09]} 13. Bxd4 {[%emt 0:00:15]} b6 {[%emt 0:00:11]} 14. Rad1 {[%emt 0:00:05]} Qc7 {[%emt 0:00:14]} 15. Be5 {[%emt 0:00:55]} Qc5 {[%emt 0:00:45]} 16. a3 {[%emt 0:02:31]} Bb7 {[%emt 0:00:18]} 17. b4 {[%emt 0:00:04]} Qc8 {[%emt 0:00:18]} 18. Nd4 {[%emt 0:01:26]} a5 {[%emt 0:01:14]} 19. b5 {[%emt 0:00:45]} Nd7 {[%emt 0:00:13]} 20. Bg3 {[%emt 0:01:24]} Bxa3 {[%emt 0:00:09]} 21. Nc6 {[%emt 0:01:50]} Bc5 {[%emt 0:00:47]} 22. Be4 {[%emt 0:02:18]} Nf6 {[%emt 0:00:35]} 23. Bd6 {[%emt 0:00:41]} Bxd6 {[%emt 0:02:13]} 24. Rxd6 {[%emt 0:00:01]} Re8 {[%emt 0:00:27]} 25. Bf3 {[%emt 0:00:17]} a4 {[%emt 0:00:18]} 26. Rfd1 {[%emt 0:01:02]} Qc7 {[%emt 0:00:11]} 27. c5 {[%emt 0:00:48]} Kh8 {[%emt 0:00:58]} 28. cxb6 {[%emt 0:00:40]} Qxb6 {[%emt 0:00:05]} 29. Nd8 {[%emt 0:00:38]} Qxb5 {[%emt 0:01:30]} 30. Bxb7 {[%emt 0:01:20]} Raxd8 {[%emt 0:01:09]} 31. Rxd8 {[%emt 0:00:02]} Qxb7 {[%emt 0:00:10]} 32. Rxe8+ {[%emt 0:00:36]} Nxe8 {[%emt 0:00:14]} 33. Rd8 {[%emt 0:00:01]} Qb5 {[%emt 0:01:11]} 34. Qc8 {[%emt 0:00:04]} Qb1+ {[%emt 0:01:55]} 35. Kh2 {[%emt 0:00:01]} a3 {[%emt 0:00:05]} 36. Rxe8+ {[%emt 0:00:03]} Kh7 {[%emt 0:00:01]} 37. Rh8+ {[%emt 0:00:10]} Kg6 {[%emt 0:00:03]} 38. Qb8 {[%emt 0:00:04]} a2 {[%emt 0:00:24]} 39. Qg3+ {[%emt 0:00:15]} Kf6 {[%emt 0:00:36]} 40. Qh4+ {[%emt 0:00:37]} Kg6 {[%emt 0:00:13]} 41. Qg4+ {[%emt 0:00:08]} Kf6 {[%emt 0:00:13]} 42. Qd4+ {[%emt 0:00:12]} e5 {[%emt 0:00:45]} 43. Qd6+ {[%emt 0:00:09]} Kf5 {[%emt 0:00:17]} 44. g4+ {[%emt 0:00:11]} Ke4 {[%emt 0:00:31]} 45. Qc6+ {[%emt 0:00:12]} Kf4 {[%emt 0:00:28]} 46. Qc4+ {[%emt 0:00:12]} Kg5 {[%emt 0:00:32]} 47. Qxf7 {[%emt 0:00:22]} a1=Q {[%emt 0:00:51]} 48. Qh5+ {[%emt 0:00:08]} Kf6 {[%emt 0:00:05]} 49. Rf8+ {[%emt 0:00:01]} Ke6 {[%emt 0:00:05]} 50. Qf7+ {[%emt 0:00:04]} Kd6 {[%emt 0:00:03]} 51. Rd8+ {[%emt 0:00:03]} Kc5 {[%emt 0:00:05]} 52. Qc7+ {[%emt 0:00:03]} Kb4 {[%emt 0:00:20]} 53. Rb8+ {[%emt 0:00:03]} Ka4 {[%emt 0:00:29]} 54. Qa7# {[%emt 0:00:04]} 1-0

[Event "Kupreichik Memorial Open 2018"]
[Site "Minsk"]
[Date "2018.06.23"]
[Round "9"]
[White "Korniichuk, Oleksandra"]
[Black "Drobyshevsky, Vasily"]
[Result "1/2-1/2"]
[ECO "B01"]
[WhiteElo "1740"]
[BlackElo "1551"]
[Annotator "NA"]
[PlyCount "112"]
[EventDate "2018.06.21"]
[EventCountry "BLR"]
[SourceTitle "playchess.com"]
[Source "ChessBase"]
[SourceQuality "1"]
[TimeControl "900+10"]

1. e4 {[%emt 0:00:00]} d5 {[%emt 0:00:01]} 2. exd5 {[%emt 0:00:00]} Qxd5 {[%emt 0:00:01]} 3. Nc3 {[%emt 0:00:00]} Qe5+ {[%emt 0:00:01]} 4. Qe2 {[%emt 0:00:09]} Qxe2+ {[%emt 0:00:02]} 5. Bxe2 {[%emt 0:00:13]} Bf5 {[%emt 0:00:02]} 6. d3 {[%emt 0:00:05]} c6 {[%emt 0:00:01]} 7. Nf3 {[%emt 0:00:11]} h6 {[%emt 0:00:09]} 8. O-O {[%emt 0:00:16]} e6 {[%emt 0:00:02]} 9. Bf4 {[%emt 0:00:06]} Nd7 {[%emt 0:00:03]} 10. Rfe1 {[%emt 0:00:17]} Ngf6 {[%emt 0:00:03]} 11. Ne5 {[%emt 0:01:21]} Nxe5 {[%emt 0:00:03]} 12. Bxe5 {[%emt 0:00:02]} Be7 {[%emt 0:00:02]} 13. Bf3 {[%emt 0:00:09]} O-O {[%emt 0:00:08]} 14. Ne4 {[%emt 0:00:20]} Nxe4 {[%emt 0:00:14]} 15. Bxe4 {[%emt 0:00:25]} Bxe4 {[%emt 0:00:02]} 16. Rxe4 {[%emt 0:00:15]} Rad8 {[%emt 0:00:28]} 17. Bc3 {[%emt 0:01:12]} Rd5 {[%emt 0:00:40]} 18. Rae1 {[%emt 0:00:12]} Bc5 {[%emt 0:01:19]} 19. Re5 {[%emt 0:01:22]} Rfd8 {[%emt 0:00:43]} 20. g3 {[%emt 0:01:01]} Rxe5 {[%emt 0:00:53]} 21. Rxe5 {[%emt 0:00:03]} Rd5 {[%emt 0:01:17]} 22. Kg2 {[%emt 0:00:13]} Rxe5 {[%emt 0:00:33]} 23. Bxe5 {[%emt 0:00:02]} f6 {[%emt 0:00:20]} 24. Bc3 {[%emt 0:00:05]} Kf7 {[%emt 0:00:02]} 25. f4 {[%emt 0:00:21]} f5 {[%emt 0:00:13]} 26. Kf3 {[%emt 0:00:22]} g6 {[%emt 0:00:10]} 27. d4 {[%emt 0:01:02]} Bb6 {[%emt 0:00:26]} 28. Ke3 {[%emt 0:00:11]} Ke7 {[%emt 0:00:04]} 29. Bb4+ {[%emt 0:00:21]} Kd7 {[%emt 0:00:03]} 30. c4 {[%emt 0:00:16]} Bd8 {[%emt 0:00:28]} 31. Kd3 {[%emt 0:00:15]} h5 {[%emt 0:00:21]} 32. Be1 {[%emt 0:00:11]} Be7 {[%emt 0:00:05]} 33. Ke3 {[%emt 0:03:27]} a6 {[%emt 0:01:12]} 34. Kf3 {[%emt 0:00:11]} Bf6 {[%emt 0:00:05]} 35. Bf2 {[%emt 0:00:07]} c5 {[%emt 0:01:35]} 36. Ke2 {[%emt 0:00:47]} cxd4 {[%emt 0:00:28]} 37. Kd3 {[%emt 0:00:02]} e5 {[%emt 0:00:30]} 38. fxe5 {[%emt 0:00:02]} Bxe5 {[%emt 0:00:02]} 39. Bxd4 {[%emt 0:00:09]} Bb8 {[%emt 0:01:05]} 40. b4 {[%emt 0:00:56]} f4 {[%emt 0:00:41]} 41. gxf4 {[%emt 0:00:39]} Bxf4 {[%emt 0:00:02]} 42. h3 {[%emt 0:00:03]} Ke6 {[%emt 0:00:04]} 43. Ke4 {[%emt 0:00:07]} Bd6 {[%emt 0:00:19]} 44. c5 {[%emt 0:00:13]} Be7 {[%emt 0:00:02]} 45. a4 {[%emt 0:00:10]} g5 {[%emt 0:00:28]} 46. b5 {[%emt 0:01:56]} axb5 {[%emt 0:00:05]} 47. axb5 {[%emt 0:00:03]} g4 {[%emt 0:00:02]} 48. hxg4 {[%emt 0:00:06]} hxg4 {[%emt 0:00:01]} 49. c6 {[%emt 0:01:03]} bxc6 {[%emt 0:00:06]} 50. bxc6 {[%emt 0:00:24]} g3 {[%emt 0:00:23]} 51. Be5 {[%emt 0:00:36]} g2 {[%emt 0:00:10]} 52. Bh2 {[%emt 0:00:11]} Bd6 {[%emt 0:00:18]} 53. Kf3 {[%emt 0:00:02]} Bxh2 {[%emt 0:00:32]} 54. Kxg2 {[%emt 0:00:03]} Bc7 {[%emt 0:00:02]} 55. Kf3 {[%emt 0:00:02]} Kd5 {[%emt 0:00:01]} 56. Ke3 {[%emt 0:00:03]} Kxc6 {[%emt 0:00:01]} 1/2-1/2

[Event "Kupreichik Memorial Open 2018"]
[Site "Minsk"]
[Date "2018.06.23"]
[Round "9"]
[White "Tsvetkova, Vladislava"]
[Black "Shvedau, Mikhail"]
[Result "0-1"]
[ECO "C02"]
[WhiteElo "1697"]
[BlackElo "1653"]
[Annotator "NA"]
[PlyCount "90"]
[EventDate "2018.06.21"]
[EventCountry "BLR"]
[SourceTitle "playchess.com"]
[Source "ChessBase"]
[SourceQuality "1"]
[TimeControl "900+10"]

1. e4 {[%emt 0:00:00]} e6 {[%emt 0:00:03]} 2. d4 {[%emt 0:00:00]} d5 {[%emt 0:00:00]} 3. e5 {[%emt 0:00:00]} c5 {[%emt 0:00:01]} 4. Qg4 {[%emt 0:00:00]} cxd4 {[%emt 0:00:23]} 5. Nf3 {[%emt 0:00:00]} Nc6 {[%emt 0:00:05]} 6. Bd3 {[%emt 0:00:00]} Nge7 {[%emt 0:00:16]} 7. O-O {[%emt 0:00:10]} Ng6 {[%emt 0:00:02]} 8. Re1 {[%emt 0:00:22]} Be7 {[%emt 0:00:16]} 9. g3 {[%emt 0:02:53]} Bd7 {[%emt 0:01:05]} 10. h4 {[%emt 0:00:19]} h5 {[%emt 0:00:10]} 11. Qh3 {[%emt 0:00:06]} Qc7 {[%emt 0:00:04]} 12. Bxg6 {[%emt 0:00:27]} fxg6 {[%emt 0:00:04]} 13. Na3 {[%emt 0:01:16]} O-O-O {[%emt 0:00:45]} 14. Nb5 {[%emt 0:00:56]} Qb6 {[%emt 0:00:05]} 15. a4 {[%emt 0:00:57]} Rhf8 {[%emt 0:00:35]} 16. Ng5 {[%emt 0:02:13]} Rf5 {[%emt 0:00:24]} 17. f4 {[%emt 0:01:40]} a6 {[%emt 0:00:51]} 18. Nd6+ {[%emt 0:00:51]} Bxd6 {[%emt 0:00:23]} 19. exd6 {[%emt 0:00:06]} Re8 {[%emt 0:00:30]} 20. Qg2 {[%emt 0:00:50]} Na5 {[%emt 0:00:58]} 21. b4 {[%emt 0:02:21]} Nc4 {[%emt 0:00:19]} 22. Kh2 {[%emt 0:01:07]} Qxd6 {[%emt 0:00:59]} 23. Ba3 {[%emt 0:01:06]} Qc7 {[%emt 0:00:52]} 24. Nf3 {[%emt 0:00:31]} Ne3 {[%emt 0:01:04]} 25. Qd2 {[%emt 0:00:28]} Ng4+ {[%emt 0:00:48]} 26. Kg2 {[%emt 0:00:07]} e5 {[%emt 0:00:32]} 27. fxe5 {[%emt 0:00:17]} Ne3+ {[%emt 0:00:13]} 28. Rxe3 {[%emt 0:00:09]} dxe3 {[%emt 0:00:10]} 29. Qxe3 {[%emt 0:00:05]} Ref8 {[%emt 0:00:35]} 30. e6 {[%emt 0:00:09]} Rxf3 {[%emt 0:00:27]} 31. exd7+ {[%emt 0:00:06]} Kxd7 {[%emt 0:00:03]} 32. Qg5 {[%emt 0:00:21]} Qxc2+ {[%emt 0:00:32]} 33. Kh3 {[%emt 0:00:03]} Qf5+ {[%emt 0:00:10]} 34. Qxf5+ {[%emt 0:00:10]} gxf5 {[%emt 0:00:24]} 35. Bb2 {[%emt 0:00:18]} g6 {[%emt 0:00:07]} 36. Be5 {[%emt 0:00:05]} Rc8 {[%emt 0:00:04]} 37. Rd1 {[%emt 0:00:05]} Ke6 {[%emt 0:00:08]} 38. Re1 {[%emt 0:00:10]} Rc4 {[%emt 0:00:12]} 39. Bd4+ {[%emt 0:00:16]} Kd7 {[%emt 0:00:11]} 40. Bc5 {[%emt 0:00:03]} Re4 {[%emt 0:00:06]} 41. Rd1 {[%emt 0:00:04]} Ke6 {[%emt 0:00:04]} 42. Rc1 {[%emt 0:00:02]} d4 {[%emt 0:00:37]} 43. Bf8 {[%emt 0:00:05]} Rc3 {[%emt 0:00:09]} 44. Rd1 {[%emt 0:00:06]} d3 {[%emt 0:00:03]} 45. Bg7 {[%emt 0:00:03]} Rb3 {[%emt 0:00:05]} 0-1

[Event "Kupreichik Memorial Open 2018"]
[Site "Minsk"]
[Date "2018.06.23"]
[Round "9"]
[White "Tarasenka, Aliaksandra"]
[Black "Kaliadzich, Maryia"]
[Result "1-0"]
[ECO "B22"]
[WhiteElo "1682"]
[BlackElo "2021"]
[Annotator "NA"]
[PlyCount "81"]
[EventDate "2018.06.21"]
[EventCountry "BLR"]
[SourceTitle "playchess.com"]
[Source "ChessBase"]
[SourceQuality "1"]
[TimeControl "900+10"]

1. e4 {[%emt 0:00:00]} c5 {[%emt 0:00:08]} 2. c3 {[%emt 0:00:00]} d5 {[%emt 0:00:02]} 3. exd5 {[%emt 0:00:00]} Qxd5 {[%emt 0:00:02]} 4. d4 {[%emt 0:00:00]} Nf6 {[%emt 0:00:04]} 5. Nf3 {[%emt 0:00:09]} Bg4 {[%emt 0:00:02]} 6. Qa4+ {[%emt 0:00:12]} Bd7 {[%emt 0:04:52]} 7. Qb3 {[%emt 0:00:30]} e6 {[%emt 0:01:07]} 8. Bc4 {[%emt 0:01:22]} Qe4+ {[%emt 0:01:24]} 9. Be3 {[%emt 0:00:19]} Bc6 {[%emt 0:01:03]} 10. Nbd2 {[%emt 0:02:12]} Qg4 {[%emt 0:00:13]} 11. O-O-O {[%emt 0:03:37]} Nbd7 {[%emt 0:01:26]} 12. h3 {[%emt 0:00:53]} Qg6 {[%emt 0:00:05]} 13. g4 {[%emt 0:01:36]} Nd5 {[%emt 0:02:34]} 14. Bxd5 {[%emt 0:02:07]} exd5 {[%emt 0:01:11]} 15. Nh4 {[%emt 0:01:47]} Qf6 {[%emt 0:00:34]} 16. Rhe1 {[%emt 0:00:29]} O-O-O {[%emt 0:00:37]} 17. Ndf3 {[%emt 0:01:36]} c4 {[%emt 0:00:39]} 18. Qc2 {[%emt 0:00:08]} h6 {[%emt 0:00:44]} 19. g5 {[%emt 0:00:19]} Qd6 {[%emt 0:00:15]} 20. Nf5 {[%emt 0:00:05]} Qc7 {[%emt 0:00:10]} 21. gxh6 {[%emt 0:00:18]} g6 {[%emt 0:00:27]} 22. Ng7 {[%emt 0:00:13]} Qa5 {[%emt 0:00:12]} 23. b3 {[%emt 0:00:41]} Bxg7 {[%emt 0:00:44]} 24. hxg7 {[%emt 0:00:04]} Rh7 {[%emt 0:00:03]} 25. Ng5 {[%emt 0:00:17]} Rxg7 {[%emt 0:00:02]} 26. Bf4 {[%emt 0:00:11]} cxb3 {[%emt 0:00:10]} 27. axb3 {[%emt 0:00:04]} Bb5 {[%emt 0:00:30]} 28. Kb2 {[%emt 0:00:14]} Qb6 {[%emt 0:00:07]} 29. Re3 {[%emt 0:00:16]} a5 {[%emt 0:00:20]} 30. Rde1 {[%emt 0:00:04]} a4 {[%emt 0:00:03]} 31. b4 {[%emt 0:00:01]} Qa6 {[%emt 0:00:04]} 32. Ka3 {[%emt 0:00:02]} Bc6 {[%emt 0:00:06]} 33. Re7 {[%emt 0:00:14]} Qb6 {[%emt 0:00:16]} 34. Nxf7 {[%emt 0:00:00]} Rxf7 {[%emt 0:00:07]} 35. Rxf7 {[%emt 0:00:00]} Qb5 {[%emt 0:00:10]} 36. Qe2 {[%emt 0:00:27]} Qb6 {[%emt 0:00:13]} 37. Qe6 {[%emt 0:00:15]} Qb5 {[%emt 0:00:22]} 38. Qd6 {[%emt 0:00:08]} Qb6 {[%emt 0:00:03]} 39. Ree7 {[%emt 0:00:16]} Bb5 {[%emt 0:00:14]} 40. Qb8+ {[%emt 0:00:13]} Nxb8 {[%emt 0:00:04]} 41. Rc7+ {[%emt 0:00:01]} 1-0

[Event "Kupreichik Memorial Open 2018"]
[Site "Minsk"]
[Date "2018.06.23"]
[Round "9"]
[White "Sukalina, Alina"]
[Black "Korniichuk, Fedir"]
[Result "1-0"]
[ECO "D55"]
[WhiteElo "1673"]
[BlackElo "1568"]
[Annotator "NA"]
[PlyCount "71"]
[EventDate "2018.06.21"]
[EventCountry "BLR"]
[SourceTitle "playchess.com"]
[Source "ChessBase"]
[SourceQuality "1"]
[TimeControl "900+10"]

1. d4 {[%emt 0:00:00]} Nf6 {[%emt 0:00:03]} 2. c4 {[%emt 0:00:00]} e6 {[%emt 0:00:03]} 3. Nf3 {[%emt 0:00:00]} d5 {[%emt 0:00:07]} 4. Nc3 {[%emt 0:00:05]} Be7 {[%emt 0:00:18]} 5. Bg5 {[%emt 0:00:10]} O-O {[%emt 0:00:06]} 6. e3 {[%emt 0:00:02]} c6 {[%emt 0:00:16]} 7. Bd3 {[%emt 0:00:12]} Nbd7 {[%emt 0:00:13]} 8. Qc2 {[%emt 0:00:16]} h6 {[%emt 0:00:08]} 9. Bf4 {[%emt 0:00:14]} Nb6 {[%emt 0:00:30]} 10. c5 {[%emt 0:01:44]} Nbd7 {[%emt 0:00:17]} 11. O-O {[%emt 0:00:25]} Re8 {[%emt 0:00:33]} 12. h3 {[%emt 0:00:13]} Bf8 {[%emt 0:00:26]} 13. b4 {[%emt 0:00:19]} Nh5 {[%emt 0:02:30]} 14. Bh2 {[%emt 0:00:28]} g6 {[%emt 0:00:39]} 15. b5 {[%emt 0:00:50]} Bg7 {[%emt 0:00:38]} 16. bxc6 {[%emt 0:03:43]} bxc6 {[%emt 0:00:02]} 17. e4 {[%emt 0:00:11]} Nhf6 {[%emt 0:02:05]} 18. Rab1 {[%emt 0:01:22]} dxe4 {[%emt 0:02:14]} 19. Nxe4 {[%emt 0:00:03]} Nxe4 {[%emt 0:01:56]} 20. Bxe4 {[%emt 0:00:02]} a5 {[%emt 0:00:32]} 21. Bxc6 {[%emt 0:00:14]} Ra6 {[%emt 0:00:07]} 22. Bb5 {[%emt 0:00:08]} Ra8 {[%emt 0:00:04]} 23. c6 {[%emt 0:00:13]} Nf6 {[%emt 0:01:26]} 24. c7 {[%emt 0:00:04]} Qe7 {[%emt 0:00:06]} 25. Bxe8 {[%emt 0:00:07]} Nxe8 {[%emt 0:00:05]} 26. Rb8 {[%emt 0:00:10]} Nxc7 {[%emt 0:01:03]} 27. Rxa8 {[%emt 0:00:08]} Nxa8 {[%emt 0:01:23]} 28. Qxc8+ {[%emt 0:00:02]} Kh7 {[%emt 0:00:09]} 29. Qxa8 {[%emt 0:00:12]} Qd7 {[%emt 0:01:14]} 30. Qxa5 {[%emt 0:00:06]} Qe8 {[%emt 0:00:06]} 31. Ne5 {[%emt 0:00:05]} Qe7 {[%emt 0:00:15]} 32. Qb5 {[%emt 0:00:06]} Qf8 {[%emt 0:00:18]} 33. Qd7 {[%emt 0:00:05]} Bxe5 {[%emt 0:00:19]} 34. Bxe5 {[%emt 0:00:03]} h5 {[%emt 0:00:20]} 35. a4 {[%emt 0:00:04]} h4 {[%emt 0:00:11]} 36. Rc1 {[%emt 0:00:03]} 1-0

[Event "Kupreichik Memorial Open 2018"]
[Site "Minsk"]
[Date "2018.06.23"]
[Round "9"]
[White "Bezenson, Anton"]
[Black "Mialik, Uladzislau"]
[Result "0-1"]
[ECO "A04"]
[WhiteElo "1621"]
[BlackElo "1768"]
[Annotator "NA"]
[PlyCount "93"]
[EventDate "2018.06.21"]
[EventCountry "BLR"]
[SourceTitle "playchess.com"]
[Source "ChessBase"]
[SourceQuality "1"]
[TimeControl "900+10"]

1. Nf3 {[%emt 0:00:00]} c5 {[%emt 0:00:05]} 2. c4 {[%emt 0:00:00]} g6 {[%emt 0:00:04]} 3. Nc3 {[%emt 0:00:03]} Bg7 {[%emt 0:00:02]} 4. d4 {[%emt 0:00:03]} cxd4 {[%emt 0:00:27]} 5. Nxd4 {[%emt 0:00:02]} Nc6 {[%emt 0:00:08]} 6. Nc2 {[%emt 0:00:02]} Nf6 {[%emt 0:00:26]} 7. g3 {[%emt 0:00:15]} O-O {[%emt 0:00:12]} 8. Bg2 {[%emt 0:00:16]} d6 {[%emt 0:00:25]} 9. O-O {[%emt 0:00:16]} Be6 {[%emt 0:01:42]} 10. Ne3 {[%emt 0:01:34]} Qd7 {[%emt 0:02:22]} 11. b3 {[%emt 0:02:39]} Ng4 {[%emt 0:01:32]} 12. Qd3 {[%emt 0:06:21]} Nb4 {[%emt 0:02:00]} 13. Qd2 {[%emt 0:00:08]} Nxe3 {[%emt 0:00:05]} 14. fxe3 {[%emt 0:00:08]} Bh3 {[%emt 0:01:00]} 15. Bb2 {[%emt 0:00:39]} Bxg2 {[%emt 0:00:22]} 16. Kxg2 {[%emt 0:00:03]} Rac8 {[%emt 0:01:14]} 17. a3 {[%emt 0:00:51]} Nc6 {[%emt 0:00:15]} 18. Nd5 {[%emt 0:00:27]} Ne5 {[%emt 0:00:28]} 19. Bxe5 {[%emt 0:02:03]} Bxe5 {[%emt 0:00:10]} 20. Rad1 {[%emt 0:00:27]} Bg7 {[%emt 0:00:24]} 21. Qd3 {[%emt 0:00:17]} Qe6 {[%emt 0:01:19]} 22. Rf3 {[%emt 0:00:28]} Rc5 {[%emt 0:01:13]} 23. Rdf1 {[%emt 0:00:31]} b5 {[%emt 0:00:37]} 24. Nf4 {[%emt 0:00:39]} Qd7 {[%emt 0:00:04]} 25. cxb5 {[%emt 0:00:24]} Rxb5 {[%emt 0:00:28]} 26. a4 {[%emt 0:00:12]} Rc5 {[%emt 0:00:23]} 27. Nd5 {[%emt 0:00:08]} Qe6 {[%emt 0:00:33]} 28. Nf4 {[%emt 0:00:24]} Qe5 {[%emt 0:00:15]} 29. b4 {[%emt 0:00:13]} Rc3 {[%emt 0:00:13]} 30. Qd2 {[%emt 0:00:05]} Qe4 {[%emt 0:00:53]} 31. Nd3 {[%emt 0:00:10]} f5 {[%emt 0:00:14]} 32. Kg1 {[%emt 0:00:11]} Rfc8 {[%emt 0:00:09]} 33. Rf4 {[%emt 0:00:12]} Qe6 {[%emt 0:00:10]} 34. Rc1 {[%emt 0:00:08]} Rxc1+ {[%emt 0:00:14]} 35. Nxc1 {[%emt 0:00:02]} Bh6 {[%emt 0:00:18]} 36. Rf3 {[%emt 0:00:04]} Rc4 {[%emt 0:00:11]} 37. Nd3 {[%emt 0:00:10]} Qe4 {[%emt 0:00:19]} 38. Kf2 {[%emt 0:00:17]} Qc6 {[%emt 0:00:11]} 39. Nf4 {[%emt 0:00:17]} Rc2 {[%emt 0:00:19]} 40. Qd5+ {[%emt 0:00:06]} Qxd5 {[%emt 0:00:02]} 41. Nxd5 {[%emt 0:00:03]} e6 {[%emt 0:00:10]} 42. Nf4 {[%emt 0:00:10]} e5 {[%emt 0:00:17]} 43. Nd5 {[%emt 0:00:26]} e4 {[%emt 0:00:12]} 44. Rf4 {[%emt 0:00:11]} Bxf4 {[%emt 0:00:04]} 45. exf4 {[%emt 0:00:10]} Kf7 {[%emt 0:00:05]} 46. Ke3 {[%emt 0:00:11]} Ke6 {[%emt 0:00:06]} 47. Kf2 0-1

[Event "Kupreichik Memorial Open 2018"]
[Site "Minsk"]
[Date "2018.06.23"]
[Round "9"]
[White "Tkachou, Pavel"]
[Black "Rybakova, Polina"]
[Result "0-1"]
[ECO "A49"]
[WhiteElo "1535"]
[BlackElo "1826"]
[Annotator "NA"]
[PlyCount "90"]
[EventDate "2018.06.21"]
[EventCountry "BLR"]
[SourceTitle "playchess.com"]
[Source "ChessBase"]
[SourceQuality "1"]
[TimeControl "900+10"]

1. d4 {[%emt 0:00:00]} Nf6 {[%emt 0:00:03]} 2. Nf3 {[%emt 0:00:00]} g6 {[%emt 0:00:03]} 3. g3 {[%emt 0:00:00]} Bg7 {[%emt 0:00:01]} 4. Bg2 {[%emt 0:00:00]} O-O {[%emt 0:00:24]} 5. c4 {[%emt 0:00:00]} e6 {[%emt 0:00:16]} 6. Nc3 {[%emt 0:00:00]} d5 {[%emt 0:00:09]} 7. O-O {[%emt 0:00:06]} Ne4 {[%emt 0:01:38]} 8. Nd2 {[%emt 0:02:43]} Nxd2 {[%emt 0:02:53]} 9. Qxd2 {[%emt 0:00:18]} dxc4 {[%emt 0:00:09]} 10. Rd1 {[%emt 0:00:41]} c6 {[%emt 0:01:13]} 11. e4 {[%emt 0:00:36]} Nd7 {[%emt 0:02:54]} 12. d5 {[%emt 0:00:15]} cxd5 {[%emt 0:00:58]} 13. exd5 {[%emt 0:00:02]} exd5 {[%emt 0:00:58]} 14. Bxd5 {[%emt 0:00:09]} Qc7 {[%emt 0:01:55]} 15. Qe2 {[%emt 0:02:20]} Nb6 {[%emt 0:01:53]} 16. Bf4 {[%emt 0:00:49]} Qc5 {[%emt 0:00:37]} 17. Bf3 {[%emt 0:02:55]} Bf5 {[%emt 0:01:33]} 18. Bd6 {[%emt 0:00:08]} Qa5 {[%emt 0:00:20]} 19. Bxf8 {[%emt 0:00:20]} Rxf8 {[%emt 0:00:01]} 20. Qd2 {[%emt 0:01:36]} h5 {[%emt 0:00:11]} 21. h4 {[%emt 0:00:41]} Kh7 {[%emt 0:00:01]} 22. Nd5 {[%emt 0:00:58]} Qxd2 {[%emt 0:00:13]} 23. Rxd2 {[%emt 0:00:02]} Nxd5 {[%emt 0:00:03]} 24. Bxd5 {[%emt 0:00:15]} c3 {[%emt 0:00:02]} 25. bxc3 {[%emt 0:01:56]} Bxc3 {[%emt 0:00:02]} 26. Rad1 {[%emt 0:00:36]} Bxd2 {[%emt 0:00:14]} 27. Rxd2 {[%emt 0:00:01]} Rd8 {[%emt 0:00:11]} 28. Rd1 {[%emt 0:00:33]} Bc2 {[%emt 0:00:25]} 29. Rc1 {[%emt 0:00:09]} Rxd5 {[%emt 0:00:15]} 30. Rxc2 Rd7 {[%emt 0:00:00]} 31. Kf1 {[%emt 0:00:02]} Kg7 {[%emt 0:00:01]} 32. Ke2 {[%emt 0:00:01]} f6 {[%emt 0:00:08]} 33. Ke3 {[%emt 0:00:13]} g5 {[%emt 0:00:08]} 34. hxg5 {[%emt 0:00:24]} fxg5 {[%emt 0:00:04]} 35. f4 {[%emt 0:00:27]} Re7+ {[%emt 0:00:31]} 36. Kd4 {[%emt 0:00:11]} Kg6 {[%emt 0:00:21]} 37. Rc5 {[%emt 0:00:20]} gxf4 {[%emt 0:00:08]} 38. gxf4 {[%emt 0:00:01]} h4 {[%emt 0:00:16]} 39. Rg5+ {[%emt 0:00:05]} Kh6 {[%emt 0:00:07]} 40. Rb5 {[%emt 0:00:29]} b6 {[%emt 0:00:15]} 41. f5 {[%emt 0:00:19]} Kg5 {[%emt 0:00:13]} 42. f6+ {[%emt 0:01:02]} Kxf6 {[%emt 0:00:04]} 43. Rh5 {[%emt 0:00:02]} Rd7+ {[%emt 0:00:15]} 44. Kc4 {[%emt 0:00:00]} Rc7+ {[%emt 0:00:07]} 45. Kb5 {[%emt 0:00:01]} Rc5+ {[%emt 0:00:04]} 0-1